bitfinex-derivatives/quotes_SOLF0:USTF0_20250819
["timestamp","ask_amount","ask_price","bid_price","bid_amount"]
[1755613264964,370.36,181.66,181.5,2.96]
[1755613265163,6.05992139,181.74,181.53,2.96]
[1755613265364,146.71657096,181.73,181.53,2.96]
[1755613265671,371.25817616,181.77,181.64,2.96]
[1755613265861,1.37632592,181.76,181.64,2.96]
[1755613266166,370.3,181.77,181.64,2.96]
[1755613266370,1.37621855,181.76,181.64,2.96]
[1755613266572,370.3,181.77,181.64,8.4639]
[1755613266766,370.3,181.77,181.64,2.96]
[1755613269566,370.3,181.77,181.67,3.02]
[1755613273073,144.94,181.76,181.67,3.02]
[1755613274466,144.94,181.76,181.63,7.19437937]
[1755613274772,144.94,181.76,181.62,3.02]
[1755613275272,7.19437937,181.75,181.62,3.02]
[1755613275776,24.65247639,181.75,181.62,3.02]
[1755613276575,23.69437937,181.71,181.58,3.02]
[1755613276772,144.72,181.7,181.58,3.02]
[1755613277678,16.5,181.74,181.59,7.19437937]
[1755613277976,144.6,181.73,181.6,3.02]
[1755613278375,161.1,181.73,181.6,3.02]
[1755613278573,161.1,181.73,181.55,3.02]
[1755613279074,173.27864426,181.73,181.55,3.02]
[1755613279775,13.13674128,181.75,181.55,3.02]
[1755613279975,16.5,181.74,181.55,3.02]
[1755613280171,161.08,181.73,181.55,3.02]
[1755613280775,173.25864426,181.73,181.55,3.02]
[1755613282070,173.25864426,181.73,181.57,5.5061]
[1755613282271,161.08,181.73,181.58,3.02]
[1755613282474,144.58,181.73,181.58,3.02]
[1755613282668,144.58,181.73,181.54,3.02]
[1755613283173,161.08,181.73,181.54,3.02]
[1755613283673,161.08,181.73,181.59,3.02]
[1755613284077,0.95826851,181.71,181.49,3.02]
[1755613284274,0.95826851,181.71,181.48,382.15864426]
[1755613284275,0.95826851,181.71,181.52,3.02]
[1755613284479,16.5,181.69,181.52,3.02]
[1755613284678,161.04,181.68,181.52,3.02]
[1755613284875,12.17864426,181.65,181.44,3.02]
[1755613285074,16.5,181.64,181.44,3.02]
[1755613285269,16.5,181.64,181.41,82.38398851]
[1755613285270,386.48,181.64,181.42,3.02]
[1755613285876,369.98,181.64,181.42,3.02]
[1755613286077,369.98,181.64,181.44,3.02]
[1755613286274,386.48,181.64,181.44,3.02]
[1755613286475,12.17864426,181.58,181.4,3.02]
[1755613286680,144.56,181.57,181.4,8.5312]
[1755613286876,144.56,181.57,181.4,3.02]
[1755613287083,161.06,181.57,181.4,3.02]
[1755613288481,1.37789782,181.56,181.35,3.02]
[1755613288685,161.06,181.57,181.35,3.02]
[1755613288987,1.37789782,181.56,181.35,5.5128]
[1755613289281,144.46,181.55,181.38,5.5118]
[1755613289474,160.96,181.55,181.36,3.02]
[1755613289784,28.67864426,181.53,181.36,3.02]
[1755613290374,12.17864426,181.53,181.36,3.02]
[1755613290681,9.08988209,181.63,181.36,3.02]
[1755613290682,144.52,181.52,181.36,3.02]
[1755613290884,144.64,181.51,181.36,3.02]
[1755613291083,144.64,181.51,181.4,3.02]
[1755613291582,144.64,181.51,181.41,5.5109]
[1755613291772,144.64,181.51,181.4,3.02]
[1755613292782,144.64,181.51,181.33,12.17864426]
[1755613293081,144.64,181.51,181.36,3.02]
[1755613294787,514.82,181.51,181.36,3.02]
[1755613295487,16.54,181.5,181.36,3.02]
[1755613296189,28.71864426,181.48,181.29,3.02]
[1755613297379,12.17864426,181.48,181.29,3.02]
[1755613297583,144.7,181.47,181.29,3.02]
[1755613298487,144.7,181.47,181.3,3.02]
[1755613299786,144.7,181.47,181.3,8.534]
[1755613299988,144.7,181.47,181.3,3.02]
[1755613300386,144.7,181.47,181.32,3.11]
[1755613301096,7.22044378,181.46,181.32,3.11]
[1755613302991,7.22044378,181.42,181.32,3.11]
[1755613303785,7.22044378,181.45,181.32,3.11]
[1755613304186,23.76044378,181.45,181.32,3.11]
[1755613304390,7.22044378,181.45,181.32,3.11]
[1755613305494,23.76044378,181.45,181.32,3.11]
[1755613306687,16.54,181.5,181.33,7.22044378]
[1755613306889,144.3,181.49,181.35,3.11]
[1755613308690,23.76044378,181.48,181.35,3.11]
[1755613309285,23.76044378,181.48,181.3,3.11]
[1755613310696,7.22044378,181.48,181.31,7.22044378]
[1755613310889,144.3,181.49,181.32,3.11]
[1755613311202,144.24,181.5,181.36,3.11]
[1755613311398,370.18,181.51,181.36,3.11]
[1755613311697,144.34,181.56,181.44,3.11]
[1755613312498,144.34,181.56,181.44,8.6198]
[1755613312700,144.34,181.56,181.44,3.11]
[1755613312996,168.10044378,181.56,181.44,3.11]
[1755613313193,168.10044378,181.56,181.4,3.11]
[1755613314299,23.76044378,181.52,181.4,3.11]
[1755613314686,23.76044378,181.52,181.36,3.11]
[1755613315593,16.54,181.47,181.36,3.11]
[1755613315900,161.02,181.47,181.36,3.11]
[1755613316401,144.48,181.47,181.36,3.11]
[1755613318892,144.48,181.47,181.37,5.5121]
[1755613319092,144.48,181.47,181.38,3.11]
[1755613319694,144.48,181.47,181.38,8.6218]
[1755613319993,144.48,181.47,181.38,3.11]
[1755613320199,144.48,181.47,181.4,3.11]
[1755613320893,7.22044378,181.56,181.4,3.11]
[1755613321207,144.24,181.55,181.42,5.5106]
[1755613321401,144.24,181.55,181.43,3.11]
[1755613322703,1.37781955,181.54,181.39,3.11]
[1755613322891,1.37797524,181.53,181.39,3.11]
[1755613323090,160.78,181.55,181.39,3.11]
[1755613323291,25.13835245,181.54,181.39,3.11]
[1755613323497,1.37790867,181.53,181.39,3.11]
[1755613323900,7.22044378,181.5,181.39,3.11]
[1755613324199,1.3781385,181.49,181.39,3.11]
[1755613324400,7.22044378,181.5,181.39,3.11]
[1755613324599,1.37814918,181.49,181.39,3.11]
[1755613324797,7.22044378,181.5,181.39,3.11]
[1755613325001,1.37819761,181.49,181.35,3.11]
[1755613325203,1.37819761,181.48,181.35,3.11]
[1755613325398,1.37819761,181.47,181.35,3.11]
[1755613325599,7.22044378,181.46,181.35,3.11]
[1755613325902,151.38044378,181.46,181.3,3.11]
[1755613326099,7.22044378,181.42,181.3,3.11]
[1755613326306,1.37835914,181.41,181.25,3.11]
[1755613326599,7.22044378,181.38,181.25,3.11]
[1755613327298,1.37889511,181.37,181.25,3.11]
[1755613327495,7.22044378,181.38,181.25,3.11]
[1755613327700,16.54,181.43,181.25,3.11]
[1755613327900,7.22044378,181.39,181.25,3.11]
[1755613328200,1.37884674,181.38,181.26,7.22044378]
[1755613328405,6.05992139,181.47,181.27,3.11]
[1755613328603,148.04593581,181.46,181.27,3.11]
[1755613328907,3.88593581,181.45,181.27,3.11]
[1755613329097,1.37862813,181.44,181.27,3.11]
[1755613329402,1.37862813,181.43,181.27,3.11]
[1755613329802,1.37848369,181.42,181.27,3.11]
[1755613329997,12.21862606,181.48,181.27,12.21862606]
[1755613330204,146.69166004,181.47,181.28,7.5768141]
[1755613330503,144.18,181.47,181.3,3.02]
[1755613330704,1.37824843,181.46,181.3,3.02]
[1755613330902,1.37824843,181.45,181.33,5.5131]
[1755613331098,1.37824843,181.44,181.3,3.02]
[1755613331297,1.37824843,181.43,181.3,3.02]
[1755613331497,1.37839401,181.42,181.33,3.02]
[1755613331707,1.37837825,181.41,181.33,3.02]
[1755613331999,144.18,181.47,181.34,5.5128]
[1755613332201,1.3782494,181.46,181.35,3.02]
[1755613332396,1.3782494,181.45,181.35,3.02]
[1755613332703,144.18,181.47,181.35,3.02]
[1755613332704,1.3782494,181.44,181.35,3.02]
[1755613332899,1.3782494,181.43,181.35,3.02]
[1755613333097,1.3782494,181.42,181.35,3.02]
[1755613333294,144.18,181.47,181.35,3.02]
[1755613333493,3.90259821,181.46,181.35,3.02]
[1755613333697,1.37829796,181.45,181.3,3.02]
[1755613333899,3.90272006,181.44,181.3,3.02]
[1755613334098,3.90272006,181.43,181.3,3.02]
[1755613334299,1.37829796,181.42,181.3,3.02]
[1755613334505,1.37829796,181.41,181.3,3.02]
[1755613334702,1.37829796,181.4,181.3,3.02]
[1755613335004,1.37829796,181.39,181.24,4.5568141]
[1755613335306,1.37829796,181.38,181.25,3.02]
[1755613335506,1.37829796,181.37,181.25,3.02]
[1755613336805,1.37829796,181.37,181.21,3.02]
[1755613338806,1.37912187,181.36,181.21,3.02]
[1755613339006,1.37912187,181.35,181.21,3.02]
[1755613339207,1.37912187,181.34,181.21,3.02]
[1755613339402,156.39862606,181.38,181.21,5.517]
[1755613339609,1.37912761,181.37,181.22,3.02]
[1755613339911,1.37911142,181.36,181.22,3.02]
[1755613340111,144.18,181.38,181.22,3.02]
[1755613340411,1.37895011,181.37,181.22,3.02]
[1755613340611,144.18,181.38,181.24,7.5768141]
[1755613340811,144.18,181.38,181.24,3.02]
[1755613341007,1.37883742,181.37,181.24,3.02]
[1755613341201,144.18,181.38,181.24,3.02]
[1755613341405,1.37893416,181.37,181.24,3.02]
[1755613341701,1.37893416,181.36,181.24,3.02]
[1755613341905,144.18,181.38,181.24,3.02]
[1755613342209,1.37903631,181.37,181.24,3.02]
[1755613342400,1.37903631,181.36,181.24,3.02]
[1755613342603,144.18,181.38,181.24,3.02]
[1755613342911,144.18,181.38,181.26,3.02]
[1755613344005,144.22,181.46,181.26,3.02]
[1755613344205,12.21862606,181.44,181.26,3.02]
[1755613344511,1.37853458,181.43,181.26,3.02]
[1755613345207,1.37853458,181.42,181.26,3.02]
[1755613345405,1.37853458,181.41,181.26,3.02]
[1755613345712,1.37875626,181.4,181.26,3.02]
[1755613345910,1.37882091,181.39,181.26,3.02]
[1755613346102,1.37899838,181.38,181.26,3.02]
[1755613346302,16.54,181.42,181.26,3.02]
[1755613346617,12.21862606,181.45,181.26,8.5353]
[1755613346911,7.4386617,181.44,181.26,3.02]
[1755613347112,1.37874031,181.43,181.22,4.5568141]
[1755613347307,6.05992139,181.49,181.26,3.02]
[1755613347507,370.42,181.5,181.31,3.02]
[1755613347508,1.37862127,181.48,181.31,3.02]
[1755613347708,370.42,181.5,181.31,8.5338]
[1755613347909,12.21862606,181.49,181.31,3.02]
[1755613348103,1.37823834,181.48,181.31,3.02]
[1755613348308,1.37823834,181.47,181.31,3.02]
[1755613348512,17.91823834,181.48,181.31,3.02]
[1755613348709,1.37845392,181.47,181.31,3.02]
[1755613348910,1.37845392,181.46,181.31,3.02]
[1755613349111,1.37845392,181.45,181.31,3.02]
[1755613349306,1.37848607,181.44,181.31,3.02]
[1755613349508,1.37848607,181.43,181.31,3.02]
[1755613351115,145.2,181.44,181.31,3.02]
[1755613352605,5.5134,181.34,181.31,3.02]
[1755613352910,145.2,181.44,181.31,3.02]
[1755613353310,1.37855704,181.43,181.31,3.02]
[1755613353522,5.5137,181.32,181.31,3.02]
[1755613353817,7.22455794,181.41,181.25,3.02]
[1755613354121,3.50174411,181.27,181.26,3.02]
[1755613354316,2.93,181.37,181.26,3.02]
[1755613355217,11.025,181.36,181.26,3.02]
[1755613355720,10.15455794,181.37,181.26,3.02]
[1755613356620,2.93,181.37,181.26,3.02]
[1755613356809,2.93,181.37,181.21,3.02]
[1755613357216,2.93,181.31,181.17,3.02]
[1755613360420,144.76,181.32,181.2,3.01]
[1755613360615,144.76,181.32,181.2,7.62283104]
[1755613360816,2.99,181.35,181.26,5.5155]
[1755613361120,2.99,181.35,181.24,3.01]
[1755613361421,2.99,181.35,181.24,8.5259]
[1755613361721,370.58,181.37,181.24,3.01]
[1755613362018,148.41,181.4,181.28,3.01]
[1755613362421,148.41,181.4,181.29,5.5145]
[1755613363012,148.41,181.4,181.28,3.01]
[1755613363714,4.36880144,181.39,181.28,3.01]
[1755613364025,10.21455794,181.37,181.22,3.01]
[1755613364222,1.37880144,181.36,181.22,3.01]
[1755613364921,2.99,181.37,181.22,3.01]
[1755613365618,2.99,181.37,181.24,3.01]
[1755613365825,2.99,181.37,181.27,3.01]
[1755613366723,373.61,181.47,181.27,14.84738898]
[1755613366921,1.3785822,181.46,181.29,3.01]
[1755613367124,1.3785822,181.45,181.29,3.01]
[1755613367324,1.3785822,181.44,181.32,3.01]
[1755613367526,2.99,181.43,181.32,3.01]
[1755613367721,2.99,181.43,181.32,8.5235]
[1755613368225,2.99,181.43,181.29,3.01]
[1755613368519,1.37862816,181.42,181.29,3.01]
[1755613368728,1.3785679,181.41,181.29,3.01]
[1755613368927,1.3785679,181.4,181.29,3.01]
[1755613369129,2.99,181.43,181.29,3.01]
[1755613369328,1.37864759,181.42,181.29,3.01]
[1755613369625,1.37864759,181.41,181.29,3.01]
[1755613369820,2.99,181.43,181.31,3.01]
[1755613370025,2.99,181.43,181.33,5.5133]
[1755613370420,2.99,181.48,181.31,7.62283104]
[1755613370621,1.37826601,181.46,181.32,3.01]
[1755613370821,1.37826601,181.45,181.32,3.01]
[1755613371021,2.99,181.48,181.32,3.01]
[1755613371222,1.37829017,181.46,181.32,3.01]
[1755613371527,1.37829017,181.45,181.32,3.01]
[1755613371727,2.99,181.48,181.32,3.01]
[1755613371928,1.37831433,181.46,181.32,3.01]
[1755613372127,1.37831433,181.45,181.32,3.01]
[1755613372324,2.99,181.48,181.32,3.01]
[1755613372524,1.37830354,181.46,181.32,3.01]
[1755613372726,1.37830354,181.45,181.34,5.5131]
[1755613372927,2.99,181.48,181.34,5.5131]
[1755613373123,2.99,181.48,181.35,3.01]
[1755613373427,2.99,181.48,181.38,3.01]
[1755613373623,2.99,181.48,181.34,7.22455794]
[1755613373624,2.99,181.46,181.32,7.62283104]
[1755613373825,1.37820361,181.45,181.32,3.01]
[1755613374223,10.21455794,181.44,181.32,3.01]
[1755613374426,1.37820361,181.43,181.28,3.01]
[1755613374729,2.99,181.42,181.28,3.01]
[1755613375027,1.37860437,181.41,181.28,3.01]
[1755613375218,2.99,181.4,181.28,3.01]
[1755613375424,1.37881188,181.39,181.28,3.01]
[1755613375629,2.99,181.4,181.28,3.01]
[1755613376127,1.37871516,181.39,181.28,3.01]
[1755613376329,2.99,181.4,181.28,3.01]
[1755613376523,1.37882854,181.39,181.28,3.01]
[1755613376832,2.99,181.37,181.23,4.61283104]
[1755613377129,2.99,181.37,181.23,7.62283104]
[1755613377723,2.99,181.37,181.23,13.13903104]
[1755613377928,2.99,181.37,181.24,3.01]
[1755613379124,1.37894163,181.36,181.24,3.01]
[1755613379429,2.99,181.34,181.24,3.01]
[1755613382230,2.99,181.34,181.2,7.62283104]
[1755613383433,2.99,181.34,181.2,13.14013104]
[1755613383636,2.99,181.34,181.2,7.62283104]
[1755613383934,2.99,181.34,181.21,5.517]
[1755613384127,2.99,181.34,181.2,7.62283104]
[1755613384624,2.99,181.34,181.2,13.13993104]
[1755613384829,2.99,181.34,181.2,7.62283104]
[1755613385133,2.99,181.34,181.2,3.01]
[1755613385331,2.99,181.34,181.2,8.5273]
[1755613385537,2.99,181.34,181.2,3.01]
[1755613385931,2.99,181.34,181.2,7.62283104]
[1755613386138,0.03642502,181.29,181.21,3.01]
[1755613386436,0.03642502,181.29,181.22,5.5166]
[1755613386729,0.03642502,181.29,181.21,3.01]
[1755613387735,0.03642502,181.29,181.25,3.01]
[1755613387937,0.03642502,181.29,181.21,4.61283104]
[1755613388128,0.03642502,181.29,181.22,3.01]
[1755613388735,0.03642502,181.29,181.23,3.01]
[1755613390431,0.03642502,181.29,181.19,7.50283104]
[1755613390933,3.11,181.31,181.19,7.50283104]
[1755613391138,3.11,181.31,181.2,8.407]
[1755613391329,3.11,181.31,181.2,2.89]
[1755613393133,3.11,181.31,181.21,5.5168]
[1755613393334,3.11,181.31,181.22,2.89]
[1755613394135,3.11,181.35,181.22,2.89]
[1755613394440,3.11,181.33,181.22,2.89]
[1755613396046,3.11,181.38,181.24,2.89]
[1755613396442,3.11,181.38,181.28,2.89]
[1755613396443,1.37885578,181.37,181.28,2.89]
[1755613396635,3.11,181.38,181.28,2.89]
[1755613396836,3.11,181.43,181.28,2.89]
[1755613397036,4.80180841,181.42,181.28,2.89]
[1755613397240,1.3787642,181.41,181.28,2.89]
[1755613397437,3.11,181.43,181.32,2.89]
[1755613398042,3.11,181.43,181.32,8.4034]
[1755613398242,3.11,181.43,181.32,2.89]
[1755613399541,1.37850038,181.42,181.28,2.89]
[1755613399743,3.11,181.4,181.28,2.89]
[1755613399943,3.11,181.4,181.26,4.61283104]
[1755613399944,3.11,181.4,181.26,7.50283104]
[1755613400145,1.37878104,181.39,181.26,2.89]
[1755613400341,10.33455794,181.4,181.26,2.89]
[1755613400342,7.22455794,181.4,181.26,2.89]
[1755613400651,3.11,181.38,181.26,2.89]
[1755613400845,1.37879766,181.37,181.26,2.89]
[1755613401443,3.11,181.36,181.26,2.89]
[1755613402854,1.37902442,181.35,181.22,2.89]
[1755613403148,3.11,181.36,181.22,2.89]
[1755613403345,1.37902453,181.35,181.22,2.89]
[1755613403549,1.3790569,181.34,181.22,2.89]
[1755613403752,3.11,181.36,181.22,2.89]
[1755613403953,3.11,181.34,181.22,2.89]
[1755613404152,3.11,181.32,181.17,13.02103104]
[1755613404354,1.37910552,181.31,181.17,13.02103104]
[1755613404852,3.11,181.3,181.17,7.50283104]
[1755613406351,3.11,181.3,181.2,5.5173]
[1755613406549,3.11,181.3,181.21,2.89]
[1755613409957,3.11,181.3,181.18,2.89]
[1755613412057,7.22455794,181.28,181.16,4.61283104]
[1755613412253,3.11,181.3,181.14,0.47618]
[1755613412254,3.11,181.23,181.14,0.47618]
[1755613412453,3.11,181.23,181.15,2.89]
[1755613412651,3.11,181.23,181.14,0.47618]
[1755613414655,1.38005315,181.22,181.14,0.47618]
[1755613414853,3.11,181.19,181.14,0.47618]
[1755613415259,7.22455794,181.2,181.14,0.47618]
[1755613415462,3.11,181.16,181.14,0.47618]
[1755613415962,3.11,181.21,181.14,0.47618]
[1755613416261,1.38024673,181.2,181.14,0.47618]
[1755613416462,3.11,181.21,181.14,0.47618]
[1755613416663,1.38026016,181.2,181.14,0.47618]
[1755613416866,3.11,181.21,181.14,0.47618]
[1755613417166,3.11,181.19,181.14,0.47618]
[1755613417359,3.11,181.22,181.14,0.47618]
[1755613417559,1.38025547,181.21,181.14,0.47618]
[1755613417760,1.38025547,181.2,181.14,0.47618]
[1755613418061,3.11,181.22,181.14,0.47618]
[1755613418262,4.79800267,181.21,181.14,0.47618]
[1755613418461,3.11,181.18,181.14,0.47618]
[1755613418665,3.11,181.17,181.14,0.47618]
[1755613420470,3.04,181.21,181.14,0.47618]
[1755613421365,15.14980348,181.41,181.14,0.47618]
[1755613421366,3.04,181.27,181.14,3.42618]
[1755613421570,3.04,181.25,181.14,3.42618]
[1755613421770,1.37998874,181.24,181.14,3.42618]
[1755613422464,3.04,181.23,181.14,0.47618]
[1755613422665,3.04,181.21,181.14,0.47618]
[1755613422865,1.38018961,181.2,181.14,0.47618]
[1755613423064,3.04,181.21,181.14,0.47618]
[1755613423266,1.38017104,181.2,181.14,0.47618]
[1755613423565,3.04,181.18,181.14,0.47618]
[1755613424573,3.04,181.22,181.14,0.47618]
[1755613424866,1.38034146,181.21,181.14,0.47618]
[1755613425066,1.38034146,181.2,181.14,0.47618]
[1755613425266,4.42034146,181.19,181.14,0.47618]
[1755613425469,4.42034146,181.18,181.14,0.47618]
[1755613425670,3.04,181.18,181.14,0.47618]
[1755613425971,3.04,181.22,181.14,0.47618]
[1755613426173,3.04,181.2,181.14,0.47618]
[1755613426371,4.42034086,181.19,181.14,0.47618]
[1755613426562,1.38034086,181.18,181.14,0.47618]
[1755613426761,3.04,181.19,181.14,0.47618]
[1755613426961,3.04,181.19,181.14,3.42618]
[1755613427168,7.22455794,181.23,181.14,0.47618]
[1755613427370,3.04,181.21,181.14,8e-05]
[1755613427566,5.5188,181.15,181.14,8e-05]
[1755613429574,8.5588,181.15,181.14,8e-05]
[1755613429771,11.64506246,181.15,181.05,3.91094106]
[1755613429973,1.38050452,181.14,181.05,2.95]
[1755613431368,3.04,181.19,181.05,2.95]
[1755613431870,1.3803342,181.18,181.05,2.95]
[1755613432072,1.3804069,181.17,181.05,2.95]
[1755613432267,3.04,181.19,181.05,2.95]
[1755613432473,1.38040739,181.18,181.05,2.95]
[1755613432667,3.04,181.17,181.05,2.95]
[1755613432867,1.38048903,181.16,181.05,2.95]
[1755613433069,1.38048903,181.15,181.05,2.95]
[1755613433373,3.04,181.17,181.05,2.95]
[1755613433571,1.38061819,181.16,181.05,2.95]
[1755613433778,1.38061819,181.15,181.05,2.95]
[1755613433975,3.04,181.17,181.05,2.95]
[1755613437278,3.04,181.21,181.07,2.95]
[1755613437573,515.44,181.23,181.07,2.95]
[1755613437574,3.04,181.19,181.07,2.95]
[1755613437771,1.38045073,181.18,181.07,2.95]
[1755613437976,3.04,181.19,181.07,2.95]
[1755613439469,1.38040274,181.18,181.07,2.95]
[1755613439675,3.04,181.17,181.07,2.95]
[1755613439872,370.94,181.23,181.07,2.95]
[1755613440071,3.04,181.21,181.07,2.95]
[1755613440277,1.38040226,181.2,181.07,2.95]
[1755613440467,1.38028293,181.19,181.07,2.95]
[1755613440675,3.04,181.21,181.07,2.95]
[1755613440974,3.04,181.19,181.07,2.95]
[1755613442180,3.04,181.19,181.08,2.95]
[1755613443078,3.04,181.15,181.02,2.95]
[1755613443381,1.38058055,181.14,181.02,2.95]
[1755613443568,3.04,181.15,181.02,2.95]
[1755613443773,3.04,181.15,181.03,2.95]
[1755613444176,3.04,181.15,180.94,6.11949895]
[1755613444177,3.04,181.13,181.02,2.95]
[1755613444376,1.38058103,181.12,181.02,2.95]
[1755613444980,3.04,181.11,180.97,2.95]
[1755613445175,1.38083241,181.1,180.97,2.95]
[1755613445379,3.04,181.08,180.97,2.95]
[1755613447082,26.80455794,181.12,180.97,2.95]
[1755613447483,1.38087311,181.11,180.97,2.95]
[1755613447683,26.80455794,181.12,180.97,2.95]
[1755613447684,1.38087311,181.1,180.97,2.95]
[1755613447885,1.38087311,181.09,180.97,2.95]
[1755613448081,1.38087311,181.08,180.97,2.95]
[1755613448277,19.58,181.12,180.97,2.95]
[1755613448480,1.38087311,181.11,180.97,2.95]
[1755613448785,3.04,181.09,180.97,2.95]
[1755613448980,1.38087311,181.08,180.97,2.95]
[1755613449184,4.28087311,181.07,180.97,2.95]
[1755613449376,1.38087311,181.06,180.97,2.95]
[1755613449990,2.9,181.07,180.97,2.95]
[1755613450385,19.44,181.12,180.97,2.95]
[1755613451880,1.38087443,181.11,180.97,2.95]
[1755613452078,19.44,181.12,180.97,2.95]
[1755613452079,1.38087443,181.1,180.97,2.95]
[1755613452275,1.38087443,181.09,180.97,2.95]
[1755613452489,2.9,181.16,180.99,7.47962421]
[1755613452786,1.38050104,181.15,181.03,2.89]
[1755613452984,4.28050104,181.14,181.03,2.89]
[1755613453182,1.38050104,181.13,181.03,2.89]
[1755613454676,2.9,181.14,181.03,2.89]
[1755613454677,1.38050104,181.12,181.03,2.89]
[1755613454982,1.38050104,181.11,181.03,2.89]
[1755613455186,2.9,181.14,181.03,8.4122]
[1755613455387,1.38045256,181.13,181.03,8.4122]
[1755613455585,1.38045256,181.12,181.03,8.4122]
[1755613455786,1.38045256,181.11,181.03,2.89]
[1755613455982,1.38045256,181.1,181.03,2.89]
[1755613456182,2.9,181.14,181.03,2.89]
[1755613456386,1.38045267,181.13,181.03,2.89]
[1755613456583,2.9,181.14,181.03,2.89]
[1755613457187,1.38045278,181.13,181.03,2.89]
[1755613457789,2.9,181.12,181.03,2.89]
[1755613457984,2.9,181.12,180.98,6.11949895]
[1755613457985,2.9,181.12,180.99,2.89]
[1755613458179,2.9,181.11,180.99,2.89]
[1755613458386,1.38082527,181.1,180.99,2.89]
[1755613458586,16.54,181.12,180.99,2.89]
[1755613458587,4.28082527,181.09,180.99,2.89]
[1755613458778,1.38094654,181.08,180.99,2.89]
[1755613459290,1.38094654,181.08,180.99,7.47962421]
[1755613459590,1.38094654,181.08,180.99,4.58962421]
[1755613459789,1.38094654,181.08,181.0,2.89]
[1755613460087,2.9,181.13,181.0,13.00272421]
[1755613460494,2.9,181.13,181.01,4.58962421]
[1755613460787,2.9,181.18,181.05,2.89]
[1755613461180,2.9,181.16,181.05,2.89]
[1755613461386,2.9,181.16,181.01,7.52194227]
[1755613461584,4.77715657,181.15,181.02,2.89]
[1755613461787,1.38062276,181.14,181.04,2.89]
[1755613461987,2.9,181.16,181.04,2.89]
[1755613462183,4.77898663,181.15,181.05,5.5215]
[1755613462485,1.38043472,181.14,181.04,2.89]
[1755613462689,2.9,181.16,181.04,2.89]
[1755613462890,4.7785906,181.15,181.04,2.89]
[1755613463091,1.38042413,181.14,181.04,2.89]
[1755613463285,2.9,181.16,181.04,2.89]
[1755613463489,4.77873702,181.15,181.04,2.89]
[1755613463690,4.77857304,181.14,181.04,2.89]
[1755613463997,4.28047248,181.13,181.04,2.89]
[1755613464195,2.9,181.13,181.04,2.89]
[1755613465893,2.9,181.13,181.01,11.85650021]
[1755613466986,2.9,181.13,181.03,2.89]
[1755613467989,4.78080076,181.12,181.03,2.89]
[1755613468195,1.3806904,181.11,181.03,2.89]
[1755613468400,2.9,181.13,181.03,2.89]
[1755613468593,2.9,181.13,181.02,4.63194227]
[1755613468793,2.9,181.11,181.0,7.52194227]
[1755613469496,2.9,181.16,181.02,2.89]
[1755613469801,1.38069478,181.15,181.05,4.63194227]
[1755613469996,2.9,181.16,181.06,2.89]